[Event "Open Nuevo Centro. Jornada 1"]
[Site "Chess.com"]
[Date "2020.06.19"]
[Round "2"]
[White "Gutierrez Marco, Dario"]
[Black "Casado Andreu, David"]
[Result "0-1"]
[WhiteElo "1930"]
[BlackElo "1572"]
[TimeControl "180+2"]
[EndTime "10:51:29 PDT"]
[Termination "Victoria de dave6635 por abandono"]

1. e4 {[%clk 0:03:01.9]} 1... e5 {[%clk 0:02:56.5]} 2. Nf3 {[%clk 0:03:02.4]}
2... Nc6 {[%clk 0:02:56.2]} 3. Bb5 {[%clk 0:03:02.9]} 3... a6 {[%clk 0:02:56.5]}
4. Ba4 {[%clk 0:03:03.6]} 4... Nf6 {[%clk 0:02:56.3]} 5. d3 {[%clk 0:03:04.3]}
5... b5 {[%clk 0:02:56]} 6. Bb3 {[%clk 0:03:04.9]} 6... Bc5 {[%clk 0:02:56.4]}
7. O-O {[%clk 0:03:05.2]} 7... d6 {[%clk 0:02:57]} 8. c3 {[%clk 0:03:06.1]} 8...
Bb6 {[%clk 0:02:56.9]} 9. Nbd2 {[%clk 0:03:06.5]} 9... O-O {[%clk 0:02:50.3]}
10. Re1 {[%clk 0:03:07]} 10... Re8 {[%clk 0:02:48.7]} 11. Nf1 {[%clk 0:03:07.3]}
11... Ne7 {[%clk 0:02:48.6]} 12. Ng3 {[%clk 0:03:07.9]} 12... Ng6 {[%clk
0:02:49.8]} 13. a4 {[%clk 0:02:46.3]} 13... Be6 {[%clk 0:02:43.4]} 14. axb5
{[%clk 0:02:42.2]} 14... axb5 {[%clk 0:02:42]} 15. Rxa8 {[%clk 0:02:35.3]} 15...
Qxa8 {[%clk 0:02:43.9]} 16. Be3 {[%clk 0:02:27.7]} 16... Qc6 {[%clk 0:02:10.4]}
17. Nf5 {[%clk 0:01:56.6]} 17... Qd7 {[%clk 0:02:04.2]} 18. Ng3 {[%clk
0:01:42.6]} 18... c5 {[%clk 0:01:49.6]} 19. Bxe6 {[%clk 0:01:18.5]} 19... fxe6
{[%clk 0:01:46.8]} 20. Qb3 {[%clk 0:01:19.2]} 20... Ng4 {[%clk 0:01:28]} 21. h3
{[%clk 0:01:13.2]} 21... c4 {[%clk 0:01:15.6]} 22. dxc4 {[%clk 0:01:10]} 22...
Nxe3 {[%clk 0:01:10.1]} 23. fxe3 {[%clk 0:01:11.9]} 23... Qa7 {[%clk 0:01:04.4]}
24. Nf1 {[%clk 0:01:03.9]} 24... bxc4 {[%clk 0:00:56.1]} 25. Qxc4 {[%clk
0:00:57.3]} 25... Qd7 {[%clk 0:00:44.1]} 26. b4 {[%clk 0:00:50.3]} 26... d5
{[%clk 0:00:44.2]} 27. Qd3 {[%clk 0:00:45.3]} 27... Rf8 {[%clk 0:00:40.1]} 28.
Kh2 {[%clk 0:00:34.8]} 28... Bc7 {[%clk 0:00:39.6]} 29. c4 {[%clk 0:00:24]}
29... Rd8 {[%clk 0:00:36.4]} 30. Rd1 {[%clk 0:00:21.3]} 30... Qf7 {[%clk
0:00:33.6]} 31. cxd5 {[%clk 0:00:21.1]} 31... exd5 {[%clk 0:00:34.3]} 32. Ng3
{[%clk 0:00:20.2]} 32... dxe4 {[%clk 0:00:33]} 33. Qxd8+ {[%clk 0:00:16.6]}
33... Bxd8 {[%clk 0:00:33.3]} 34. Rxd8+ {[%clk 0:00:18.4]} 34... Nf8 {[%clk
0:00:34.4]} 35. Nxe5 {[%clk 0:00:19]} 35... Qc7 {[%clk 0:00:34.7]} 36. Rd5
{[%clk 0:00:14.6]} 36... h6 {[%clk 0:00:29.5]} 37. Nxe4 {[%clk 0:00:12.2]} 37...
Ng6 {[%clk 0:00:27.4]} 38. Nd6 {[%clk 0:00:10.6]} 38... Nxe5 {[%clk 0:00:26.6]}
39. Rxe5 {[%clk 0:00:11.5]} 39... Qxd6 {[%clk 0:00:27.4]} 0

[Event "Open Nuevo Centro. Jornada 1"]
[Site "Chess.com"]
[Date "2020.06.19"]
[Round "2"]
[White "Zakharash, Georgii"]
[Black "Yatseta Fernandez, Marc Kazymyr"]
[Result "0-1"]
[WhiteElo "855"]
[BlackElo "1389"]
[TimeControl "180+2"]
[EndTime "10:51:34 PDT"]
[Termination "Victoria de K_73 por jaque mate"]

1. d4 {[%clk 0:03:01.9]} 1... Nf6 {[%clk 0:03:00.1]} 2. Nf3 {[%clk 0:02:59.7]}
2... d5 {[%clk 0:02:58.6]} 3. e3 {[%clk 0:03:00.1]} 3... Bf5 {[%clk 0:02:57.3]}
4. Bd3 {[%clk 0:02:57.6]} 4... Be4 {[%clk 0:02:49.9]} 5. O-O {[%clk 0:02:53.2]}
5... e6 {[%clk 0:02:50.2]} 6. Bxe4 {[%clk 0:02:50.1]} 6... Nxe4 {[%clk 0:02:49]}
7. Nfd2 {[%clk 0:02:51]} 7... Bd6 {[%clk 0:02:45.5]} 8. Nxe4 {[%clk 0:02:50.9]}
8... dxe4 {[%clk 0:02:47.4]} 9. Nd2 {[%clk 0:02:51.5]} 9... f5 {[%clk
0:02:40.9]} 10. b3 {[%clk 0:02:49.1]} 10... Nc6 {[%clk 0:02:38]} 11. Bb2 {[%clk
0:02:48.1]} 11... Qh4 {[%clk 0:02:26]} 12. g3 {[%clk 0:02:33.9]} 12... Qh3
{[%clk 0:02:22.8]} 13. c4 {[%clk 0:02:27.3]} 13... O-O-O {[%clk 0:02:16.2]} 14.
Qe2 {[%clk 0:02:22.3]} 14... Rhg8 {[%clk 0:02:09]} 15. Rfb1 {[%clk 0:02:21.7]}
15... g5 {[%clk 0:02:06.7]} 16. Qf1 {[%clk 0:02:19.9]} 16... g4 {[%clk
0:01:52.6]} 17. Qxh3 {[%clk 0:02:18]} 17... gxh3 {[%clk 0:01:54.5]} 18. Bc3
{[%clk 0:02:11.5]} 18... Bb4 {[%clk 0:01:53]} 19. Bxb4 {[%clk 0:02:06.1]} 19...
Nxb4 {[%clk 0:01:52]} 20. a3 {[%clk 0:02:02.3]} 20... Nd3 {[%clk 0:01:47]} 21.
b4 {[%clk 0:01:47.6]} 21... e5 {[%clk 0:01:33.2]} 22. d5 {[%clk 0:01:42.9]}
22... f4 {[%clk 0:01:30.3]} 23. Nxe4 {[%clk 0:01:31.7]} 23... Rdf8 {[%clk
0:01:04.8]} 24. Ra2 {[%clk 0:01:17.2]} 24... h5 {[%clk 0:01:00.3]} 25. Rd1
{[%clk 0:01:11]} 25... fxg3 {[%clk 0:00:51]} 26. fxg3 {[%clk 0:00:49.8]} 26...
h4 {[%clk 0:00:24.7]} 27. Rxd3 {[%clk 0:00:31.2]} 27... hxg3 {[%clk 0:00:24.6]}
28. Nxg3 {[%clk 0:00:30.4]} 28... Rf7 {[%clk 0:00:19.4]} 29. Rf2 {[%clk
0:00:29.3]} 29... Rfg7 {[%clk 0:00:19.6]} 30. e4 {[%clk 0:00:27.5]} 30... Kd7
{[%clk 0:00:19]} 31. Rdf3 {[%clk 0:00:26.7]} 31... c6 {[%clk 0:00:17.2]} 32.
Rf7+ {[%clk 0:00:25.5]} 32... Kd6 {[%clk 0:00:17.6]} 33. Rxg7 {[%clk 0:00:24.3]}
33... Rxg7 {[%clk 0:00:17.6]} 34. dxc6 {[%clk 0:00:24.8]} 34... Kxc6 {[%clk
0:00:15.9]} 35. Kh1 {[%clk 0:00:23]} 35... Rg4 {[%clk 0:00:14.5]} 36. Nf5 {[%clk
0:00:21.5]} 36... Rxe4 {[%clk 0:00:10.8]} 37. Ne7+ {[%clk 0:00:21.3]} 37... Kd7
{[%clk 0:00:10.3]} 38. Nf5 {[%clk 0:00:20.9]} 38... Re1+ {[%clk 0:00:10.7]} 39.
Rf1 {[%clk 0:00:20]} 39... Rxf1# {[%clk 0:00:11.5]} 0

[Event "Open Nuevo Centro. Jornada 1"]
[Site "Chess.com"]
[Date "2020.06.19"]
[Round "2"]
[White "Gimenez Sanchis, Jose Antonio"]
[Black "Valverde Alcaide, Miguel Alejandro"]
[Result "1-0"]
[WhiteElo "1424"]
[BlackElo "916"]
[TimeControl "180+2"]
[EndTime "10:51:45 PDT"]
[Termination "Victoria de migesoj por jaque mate"]

1. c4 {[%clk 0:03:01.9]} 1... c5 {[%clk 0:02:57.3]} 2. Nc3 {[%clk 0:03:02.8]}
2... Nf6 {[%clk 0:02:55.2]} 3. g3 {[%clk 0:03:03.6]} 3... a6 {[%clk 0:02:54.8]}
4. Bg2 {[%clk 0:03:02.7]} 4... e5 {[%clk 0:02:49.6]} 5. d3 {[%clk 0:03:02.4]}
5... Qe7 {[%clk 0:02:49.5]} 6. Nf3 {[%clk 0:03:01.6]} 6... b6 {[%clk 0:02:39.2]}
7. O-O {[%clk 0:02:59.4]} 7... Bb7 {[%clk 0:02:33.3]} 8. a3 {[%clk 0:02:55.3]}
8... d5 {[%clk 0:02:33.8]} 9. cxd5 {[%clk 0:02:55.5]} 9... Nxd5 {[%clk
0:02:30.5]} 10. Nxd5 {[%clk 0:02:55.4]} 10... Bxd5 {[%clk 0:02:30.4]} 11. Rb1
{[%clk 0:02:53.4]} 11... Nc6 {[%clk 0:02:22.8]} 12. Bd2 {[%clk 0:02:49.5]} 12...
h6 {[%clk 0:02:22.4]} 13. b4 {[%clk 0:02:47.6]} 13... Nd4 {[%clk 0:02:15.1]} 14.
Nxd4 {[%clk 0:02:44.1]} 14... Bxg2 {[%clk 0:02:12.6]} 15. Kxg2 {[%clk
0:02:41.1]} 15... cxd4 {[%clk 0:02:11]} 16. Rc1 {[%clk 0:02:39.2]} 16... Qb7+
{[%clk 0:02:03.8]} 17. Kg1 {[%clk 0:02:40]} 17... Rc8 {[%clk 0:02:02.9]} 18. Qb3
{[%clk 0:02:40]} 18... Rxc1 {[%clk 0:01:53.7]} 19. Rxc1 {[%clk 0:02:39.9]} 19...
Bd6 {[%clk 0:01:48.6]} 20. a4 {[%clk 0:02:35.6]} 20... O-O {[%clk 0:01:49.2]}
21. b5 {[%clk 0:02:34.4]} 21... a5 {[%clk 0:01:48.7]} 22. Rc6 {[%clk 0:02:32]}
22... Rd8 {[%clk 0:01:35.4]} 23. e3 {[%clk 0:02:09.4]} 23... Rc8 {[%clk
0:01:25.9]} 24. Qc4 {[%clk 0:01:58.3]} 24... Rxc6 {[%clk 0:01:16.2]} 25. Qxc6
{[%clk 0:01:58.8]} 25... Qxc6 {[%clk 0:01:17]} 26. bxc6 {[%clk 0:01:59.8]} 26...
Kf8 {[%clk 0:01:09.7]} 27. exd4 {[%clk 0:02:00.7]} 27... exd4 {[%clk 0:01:09.8]}
28. Bc1 {[%clk 0:01:52.1]} 28... Ke7 {[%clk 0:01:10.4]} 29. Bb2 {[%clk
0:01:53.2]} 29... Bc5 {[%clk 0:01:08.7]} 30. f4 {[%clk 0:01:50.5]} 30... Kd6
{[%clk 0:01:09.3]} 31. Kg2 {[%clk 0:01:51.5]} 31... Kxc6 {[%clk 0:01:10.1]} 32.
Kf3 {[%clk 0:01:53.1]} 32... Kd6 {[%clk 0:01:10.7]} 33. Ke4 {[%clk 0:01:54.2]}
33... Ke6 {[%clk 0:01:10.6]} 34. Bxd4 {[%clk 0:01:54.1]} 34... f5+ {[%clk
0:01:08.4]} 35. Ke3 {[%clk 0:01:50.1]} 35... Bb4 {[%clk 0:00:57.6]} 36. Bxg7
{[%clk 0:01:48.8]} 36... Be1 {[%clk 0:00:54.6]} 37. Bxh6 {[%clk 0:01:44.1]}
37... Kd5 {[%clk 0:00:53.4]} 38. h4 {[%clk 0:01:37.3]} 38... Kc5 {[%clk
0:00:53.3]} 39. Bf8+ {[%clk 0:01:37.8]} 39... Kd5 {[%clk 0:00:45.5]} 40. Bg7
{[%clk 0:01:37.6]} 40... Kc5 {[%clk 0:00:44.9]} 41. h5 {[%clk 0:01:38.6]} 41...
Kd5 {[%clk 0:00:45.6]} 42. h6 {[%clk 0:01:39.6]} 42... Kc5 {[%clk 0:00:39.2]}
43. h7 {[%clk 0:01:40.4]} 43... Kb4 {[%clk 0:00:40.1]} 44. h8=Q {[%clk
0:01:41.1]} 44... Kxa4 {[%clk 0:00:41.1]} 45. Bc3 {[%clk 0:01:37.1]} 45... b5
{[%clk 0:00:39.2]} 46. Bxe1 {[%clk 0:01:36.5]} 46... b4 {[%clk 0:00:38.7]} 47.
Bxb4 {[%clk 0:01:37.1]} 47... axb4 {[%clk 0:00:37.6]} 48. Qb2 {[%clk 0:01:37.4]}
48... b3 {[%clk 0:00:36.1]} 49. d4 {[%clk 0:01:38.4]} 49... Kb4 {[%clk
0:00:36.6]} 50. Kd3 {[%clk 0:01:39.2]} 50... Ka4 {[%clk 0:00:35.8]} 51. d5
{[%clk 0:01:39.9]} 51... Kb5 {[%clk 0:00:35.4]} 52. Qxb3+ {[%clk 0:01:39.3]}
52... Kc5 {[%clk 0:00:35.5]} 53. Ke3 {[%clk 0:01:38.7]} 53... Kd6 {[%clk
0:00:33.5]} 54. Kd4 {[%clk 0:01:39.3]} 54... Ke7 {[%clk 0:00:33.1]} 55. Qb6
{[%clk 0:01:35.9]} 55... Kd7 {[%clk 0:00:33.1]} 56. Qe6+ {[%clk 0:01:35.7]}
56... Kc7 {[%clk 0:00:33.1]} 57. d6+ {[%clk 0:01:35.1]} 57... Kd8 {[%clk
0:00:32.6]} 58. Qe7+ {[%clk 0:01:34.8]} 58... Kc8 {[%clk 0:00:33.6]} 59. d7+
{[%clk 0:01:35.1]} 59... Kc7 {[%clk 0:00:31.6]} 60. d8=Q+ {[%clk 0:01:35.7]}
60... Kc6 {[%clk 0:00:32.6]} 61. Qd5+ {[%clk 0:01:36.3]} 61... Kb6 {[%clk
0:00:33.2]} 62. Qee6+ {[%clk 0:01:36.8]} 62... Ka7 {[%clk 0:00:31.5]} 63. Qdd7+
{[%clk 0:01:37.3]} 63... Ka8 {[%clk 0:00:31.8]} 64. Qee8# {[%clk 0:01:38]} 1

[Event "Open Nuevo Centro. Jornada 1"]
[Site "Chess.com"]
[Date "2020.06.19"]
[Round "2"]
[White "Salvador Buiza, Victor"]
[Black "Garcia Oviedo, Alejandro"]
[Result "0-1"]
[WhiteElo "1517"]
[BlackElo "1880"]
[TimeControl "180+2"]
[EndTime "10:51:48 PDT"]
[Termination "Victoria de alexgarov por jaque mate"]

1. e4 {[%clk 0:03:01.9]} 1... d5 {[%clk 0:02:56.3]} 2. exd5 {[%clk 0:03:02.5]}
2... Qxd5 {[%clk 0:02:58.2]} 3. Nc3 {[%clk 0:03:02.9]} 3... Qa5 {[%clk
0:02:59.2]} 4. d4 {[%clk 0:03:03.6]} 4... Nf6 {[%clk 0:03:00.4]} 5. Bd2 {[%clk
0:03:03.6]} 5... c6 {[%clk 0:03:01.8]} 6. Nf3 {[%clk 0:03:02.5]} 6... Bf5 {[%clk
0:03:02.3]} 7. Bc4 {[%clk 0:02:58.9]} 7... e6 {[%clk 0:03:02.3]} 8. h3 {[%clk
0:02:57.1]} 8... Be7 {[%clk 0:03:02.4]} 9. O-O {[%clk 0:02:50.3]} 9... O-O
{[%clk 0:03:02.7]} 10. Nd5 {[%clk 0:02:38]} 10... Qd8 {[%clk 0:03:03.1]} 11.
Nxe7+ {[%clk 0:02:37.9]} 11... Qxe7 {[%clk 0:03:05]} 12. Bg5 {[%clk 0:02:34.9]}
12... h6 {[%clk 0:03:05.6]} 13. Bh4 {[%clk 0:02:30.2]} 13... Nbd7 {[%clk
0:03:06.1]} 14. Ne5 {[%clk 0:02:27.7]} 14... Qd6 {[%clk 0:03:02.2]} 15. Nxd7
{[%clk 0:02:12.9]} 15... Nxd7 {[%clk 0:03:04.1]} 16. c3 {[%clk 0:02:10.2]} 16...
a5 {[%clk 0:02:35.1]} 17. a4 {[%clk 0:02:05.9]} 17... Nb6 {[%clk 0:02:28.9]} 18.
Bb3 {[%clk 0:01:57.2]} 18... Nd5 {[%clk 0:02:23.1]} 19. Bg3 {[%clk 0:01:48.5]}
19... Qd7 {[%clk 0:02:19.5]} 20. Bc2 {[%clk 0:01:43.8]} 20... Bxc2 {[%clk
0:02:14]} 21. Qxc2 {[%clk 0:01:44.8]} 21... Rfc8 {[%clk 0:02:14.2]} 22. Rfd1
{[%clk 0:01:37.1]} 22... Nb6 {[%clk 0:02:08.7]} 23. Qb3 {[%clk 0:01:33.3]} 23...
Nd5 {[%clk 0:02:08.6]} 24. Rac1 {[%clk 0:01:13.3]} 24... b5 {[%clk 0:01:59.8]}
25. axb5 {[%clk 0:01:08.9]} 25... cxb5 {[%clk 0:02:01.7]} 26. c4 {[%clk
0:00:59.5]} 26... Nb4 {[%clk 0:01:56.1]} 27. c5 {[%clk 0:00:53.4]} 27... Rd8
{[%clk 0:01:49.1]} 28. Bd6 {[%clk 0:00:53.3]} 28... Qc6 {[%clk 0:01:48.4]} 29.
Qg3 {[%clk 0:00:49.4]} 29... Kh7 {[%clk 0:01:37.9]} 30. Qg4 {[%clk 0:00:34.2]}
30... Rac8 {[%clk 0:01:34.4]} 31. Be5 {[%clk 0:00:31.6]} 31... f6 {[%clk
0:01:34.4]} 32. Bd6 {[%clk 0:00:32.6]} 32... Na2 {[%clk 0:01:32.7]} 33. Ra1
{[%clk 0:00:31.6]} 33... Qd5 {[%clk 0:01:31.3]} 34. Rd3 {[%clk 0:00:26.9]} 34...
Nb4 {[%clk 0:01:30.1]} 35. Rg3 {[%clk 0:00:26.6]} 35... Rd7 {[%clk 0:01:30.4]}
36. Rxa5 {[%clk 0:00:27]} 36... Nc6 {[%clk 0:01:28.9]} 37. Rxb5 {[%clk
0:00:27.3]} 37... Nxd4 {[%clk 0:01:28.6]} 38. Rb4 {[%clk 0:00:24.7]} 38... Nf5
{[%clk 0:01:26.7]} 39. Qg6+ {[%clk 0:00:25.6]} 39... Kh8 {[%clk 0:01:24.9]} 40.
c6 {[%clk 0:00:20.1]} 40... Rxd6 {[%clk 0:01:11]} 41. Rf4 {[%clk 0:00:18]} 41...
Nxg3 {[%clk 0:01:08.9]} 42. fxg3 {[%clk 0:00:19]} 42... Qg5 {[%clk 0:00:55]} 43.
Qe4 {[%clk 0:00:15.6]} 43... Rdxc6 {[%clk 0:00:54.6]} 44. Rg4 {[%clk 0:00:16.6]}
44... Qc1+ {[%clk 0:00:54.2]} 45. Kh2 {[%clk 0:00:17.3]} 45... f5 {[%clk
0:00:55.8]} 46. Qe5 {[%clk 0:00:15.8]} 46... fxg4 {[%clk 0:00:54.6]} 47. h4
{[%clk 0:00:16.5]} 47... Qc5 {[%clk 0:00:54]} 48. h5 {[%clk 0:00:18.2]} 48...
Qxe5 {[%clk 0:00:55.1]} 49. b4 {[%clk 0:00:19.2]} 49... Qxh5+ {[%clk 0:00:57]}
50. Kg1 {[%clk 0:00:20.4]} 50... Rc1+ {[%clk 0:00:57.2]} 51. Kf2 {[%clk
0:00:21.9]} 51... R8c2+ {[%clk 0:00:58.8]} 52. Ke3 {[%clk 0:00:22.7]} 52... Qe5+
{[%clk 0:01:00.7]} 53. Kd3 {[%clk 0:00:23.6]} 53... Rc3+ {[%clk 0:01:02.6]} 54.
Kd2 {[%clk 0:00:24.5]} 54... R1c2+ {[%clk 0:01:04.4]} 55. Kd1 {[%clk 0:00:25.2]}
55... Qe2# {[%clk 0:01:06.3]} 0

[Event "Open Nuevo Centro. Jornada 1"]
[Site "Chess.com"]
[Date "2020.06.19"]
[Round "2"]
[White "Grigorev, Artur "]
[Black "Fitzpatrick Dimas  , Andrew "]
[Result "0-1"]
[WhiteElo "863"]
[BlackElo "1424"]
[TimeControl "180+2"]
[EndTime "10:51:49 PDT"]
[Termination "Victoria de Andrewlito por tiempo"]

1. e4 {[%clk 0:03:01.9]} 1... e5 {[%clk 0:03:00.1]} 2. Nf3 {[%clk 0:03:01.9]}
2... Nc6 {[%clk 0:02:59.7]} 3. Bc4 {[%clk 0:03:01.1]} 3... Bc5 {[%clk
0:02:58.8]} 4. b4 {[%clk 0:03:00.9]} 4... Bxb4 {[%clk 0:02:57]} 5. c3 {[%clk
0:03:01.6]} 5... Ba5 {[%clk 0:02:52.8]} 6. d4 {[%clk 0:02:54.9]} 6... Qe7 {[%clk
0:02:25.3]} 7. Bg5 {[%clk 0:02:43.6]} 7... f6 {[%clk 0:02:23.4]} 8. Be3 {[%clk
0:02:26.6]} 8... d6 {[%clk 0:02:16.7]} 9. dxe5 {[%clk 0:02:17]} 9... Nxe5 {[%clk
0:02:05.8]} 10. Nxe5 {[%clk 0:02:15.8]} 10... Qxe5 {[%clk 0:02:05.1]} 11. Bd4
{[%clk 0:02:09]} 11... Qxe4+ {[%clk 0:02:00.8]} 12. Be2 {[%clk 0:02:05.4]} 12...
Qxg2 {[%clk 0:01:52.1]} 13. Bf3 {[%clk 0:01:59.1]} 13... Qh3 {[%clk 0:01:36.5]}
14. Qe2+ {[%clk 0:01:56.1]} 14... Qe6 {[%clk 0:01:27.4]} 15. Bg4 {[%clk
0:01:39.6]} 15... Qxe2+ {[%clk 0:01:23.8]} 16. Bxe2 {[%clk 0:01:39]} 16... Ne7
{[%clk 0:01:17.5]} 17. O-O {[%clk 0:01:38.8]} 17... O-O {[%clk 0:01:14.2]} 18.
c4 {[%clk 0:01:32.5]} 18... Bh3 {[%clk 0:01:11.6]} 19. Re1 {[%clk 0:01:27.1]}
19... Bxe1 {[%clk 0:01:09.8]} 20. Na3 {[%clk 0:01:19.9]} 20... Bb4 {[%clk
0:01:03.3]} 21. Nb5 {[%clk 0:01:17.7]} 21... Rfc8 {[%clk 0:00:46.9]} 22. Rb1
{[%clk 0:01:07.3]} 22... Nc6 {[%clk 0:00:41.1]} 23. Bf3 {[%clk 0:00:51.4]} 23...
Bf5 {[%clk 0:00:16.7]} 24. Rb3 {[%clk 0:00:44.6]} 24... Nxd4 {[%clk 0:00:14.7]}
25. Nxd4 {[%clk 0:00:42.6]} 25... Bh3 {[%clk 0:00:13.7]} 26. Bxb7 {[%clk
0:00:33.6]} 26... Re8 {[%clk 0:00:13.3]} 27. Nc2 {[%clk 0:00:15]} 27... Re1+
{[%clk 0:00:12.2]} 28. Nxe1 {[%clk 0:00:14.9]} 28... Re8 {[%clk 0:00:11.4]} 29.
Re3 {[%clk 0:00:11.2]} 29... Rxe3 {[%clk 0:00:10.5]} 30. fxe3 {[%clk 0:00:11.6]}
30... Bxe1 {[%clk 0:00:11]} 31. Kh1 {[%clk 0:00:11.6]} 31... f5 {[%clk
0:00:10.9]} 32. Bf3 {[%clk 0:00:07.9]} 32... Bd2 {[%clk 0:00:08.6]} 33. Kg1
{[%clk 0:00:07.3]} 33... Bxe3+ {[%clk 0:00:09.2]} 34. Kh1 {[%clk 0:00:05.1]}
34... f4 {[%clk 0:00:08.6]} 0

[Event "Open Nuevo Centro. Jornada 1"]
[Site "Chess.com"]
[Date "2020.06.19"]
[Round "2"]
[White "Cebrian Granado, Fran"]
[Black "Mart�nez Cuenca, Jose Andr�s"]
[Result "0-1"]
[WhiteElo "733"]
[BlackElo "1259"]
[TimeControl "180+2"]
[EndTime "10:51:56 PDT"]
[Termination "Victoria de JoseAndres2008 por jaque mate"]

1. e4 {[%clk 0:03:01.9]} 1... c5 {[%clk 0:02:58.2]} 2. Nf3 {[%clk 0:03:02]} 2...
g6 {[%clk 0:02:56.5]} 3. Bc4 {[%clk 0:03:02.5]} 3... Nc6 {[%clk 0:02:54.9]} 4.
Nc3 {[%clk 0:03:00.9]} 4... Bg7 {[%clk 0:02:54.6]} 5. Ng5 {[%clk 0:02:56]} 5...
e6 {[%clk 0:02:48.1]} 6. Nxf7 {[%clk 0:02:54.7]} 6... Kxf7 {[%clk 0:02:46.8]} 7.
O-O {[%clk 0:02:45.9]} 7... Bxc3 {[%clk 0:02:44]} 8. dxc3 {[%clk 0:02:43.8]}
8... d5 {[%clk 0:02:35]} 9. exd5 {[%clk 0:02:42.8]} 9... exd5 {[%clk 0:02:25.2]}
10. Bxd5+ {[%clk 0:02:32.3]} 10... Ke7 {[%clk 0:02:17.6]} 11. Bg5+ {[%clk
0:02:27.3]} 11... Nf6 {[%clk 0:02:16]} 12. Re1+ {[%clk 0:02:21]} 12... Kf8
{[%clk 0:02:07.9]} 13. Bxf6 {[%clk 0:02:12.2]} 13... Qxf6 {[%clk 0:02:05.8]} 14.
Qe2 {[%clk 0:02:10.9]} 14... Bf5 {[%clk 0:01:53.4]} 15. Qe3 {[%clk 0:01:53.2]}
15... c4 {[%clk 0:01:41.3]} 16. Qh6+ {[%clk 0:01:51.1]} 16... Qg7 {[%clk
0:01:36]} 17. Qxg7+ {[%clk 0:01:40.7]} 17... Kxg7 {[%clk 0:01:34.4]} 18. Bxc4
{[%clk 0:01:41.4]} 18... Bxc2 {[%clk 0:01:30.6]} 19. h3 {[%clk 0:01:42.7]} 19...
Bf5 {[%clk 0:01:20.3]} 20. Re2 {[%clk 0:01:42.5]} 20... Rhe8 {[%clk 0:01:17.4]}
21. Rxe8 {[%clk 0:01:40]} 21... Rxe8 {[%clk 0:01:14.9]} 22. Bd5 {[%clk
0:01:36.8]} 22... Re2 {[%clk 0:01:07]} 23. Bf3 {[%clk 0:01:33.1]} 23... Rxb2
{[%clk 0:01:04.8]} 24. Re1 {[%clk 0:01:31]} 24... Rxa2 {[%clk 0:01:01.1]} 25. c4
{[%clk 0:01:30.4]} 25... Rc2 {[%clk 0:00:58.3]} 26. Bd5 {[%clk 0:01:26.1]} 26...
Bd3 {[%clk 0:00:39.2]} 27. Kh2 {[%clk 0:01:19.9]} 27... Bxc4 {[%clk 0:00:38.6]}
28. Bxc4 {[%clk 0:01:17.4]} 28... Rxc4 {[%clk 0:00:38.2]} 29. g3 {[%clk
0:01:16.5]} 29... b5 {[%clk 0:00:36.7]} 30. Rb1 {[%clk 0:01:14.2]} 30... b4
{[%clk 0:00:36.7]} 31. f3 {[%clk 0:01:13.7]} 31... Nd4 {[%clk 0:00:36.7]} 32. f4
{[%clk 0:01:12.5]} 32... b3 {[%clk 0:00:36.8]} 33. Kg2 {[%clk 0:01:10.7]} 33...
Rc2+ {[%clk 0:00:35.4]} 34. Kf1 {[%clk 0:01:06.4]} 34... b2 {[%clk 0:00:35.8]}
35. Ke1 {[%clk 0:01:03.9]} 35... Rc1+ {[%clk 0:00:34.1]} 36. Kd2 {[%clk
0:01:00.4]} 36... Rxb1 {[%clk 0:00:33.6]} 37. Kc3 {[%clk 0:00:58.7]} 37... Ne2+
{[%clk 0:00:29.3]} 38. Kc2 {[%clk 0:00:58]} 38... Rg1 {[%clk 0:00:27.2]} 39.
Kxb2 {[%clk 0:00:56.2]} 39... Rxg3 {[%clk 0:00:27.1]} 40. Kc2 {[%clk 0:00:56.8]}
40... Nxf4 {[%clk 0:00:27.1]} 41. Kd2 {[%clk 0:00:56.7]} 41... Rxh3 {[%clk
0:00:26.8]} 42. Kc2 {[%clk 0:00:57.1]} 42... Re3 {[%clk 0:00:26.7]} 43. Kd2
{[%clk 0:00:56.9]} 43... Rh3 {[%clk 0:00:23.4]} 44. Ke1 {[%clk 0:00:56.1]} 44...
Rh2 {[%clk 0:00:23]} 45. Kd1 {[%clk 0:00:55.8]} 45... Kf6 {[%clk 0:00:23.9]} 46.
Kc1 {[%clk 0:00:55.8]} 46... Ke5 {[%clk 0:00:24.3]} 47. Kd1 {[%clk 0:00:55.7]}
47... Ke4 {[%clk 0:00:24.7]} 48. Ke1 {[%clk 0:00:56.6]} 48... Kf3 {[%clk
0:00:25]} 49. Kd1 {[%clk 0:00:53.9]} 49... Ke3 {[%clk 0:00:24]} 50. Kc1 {[%clk
0:00:53.4]} 50... Kd3 {[%clk 0:00:23.5]} 51. Kb1 {[%clk 0:00:52.8]} 51... Kc3
{[%clk 0:00:23.9]} 52. Ka1 {[%clk 0:00:52.1]} 52... Kb3 {[%clk 0:00:23.8]} 53.
Kb1 {[%clk 0:00:47.3]} 53... Rh1# {[%clk 0:00:23.8]} 0